bitfinex-derivatives/quotes_SOLF0:USTF0_20250419
["timestamp","ask_amount","ask_price","bid_price","bid_amount"]
[1745104816577,32.132,139.46,139.43,7.1733]
[1745104816876,4.41950913,139.45,139.43,7.1733]
[1745104817078,7.1723,139.45,139.43,7.1733]
[1745104819278,24.96,139.46,139.43,7.1733]
[1745104819476,32.132,139.46,139.43,7.1733]
[1745104820179,4.41853363,139.45,139.43,7.1733]
[1745104820377,32.132,139.46,139.43,7.1733]
[1745104820578,11.59075718,139.45,139.43,7.1733]
[1745104820877,7.1724,139.45,139.43,7.1733]
[1745104822178,24.96,139.46,139.42,5.74229124]
[1745104824279,24.96,139.46,139.45,7.1723]
[1745104831382,29.38752758,139.46,139.45,7.1723]
[1745104832686,29.38752758,139.46,139.44,12.91479124]
[1745104832888,24.96,139.46,139.44,12.91479124]
[1745104833384,4.43274473,139.45,139.44,12.91479124]
[1745104835084,4.43274473,139.45,139.44,5.74229124]
[1745104836283,4.43274473,139.45,139.44,12.91509124]
[1745104836484,11.60504473,139.45,139.42,5.74229124]
[1745104836781,4.43274473,139.44,139.42,5.74229124]
[1745104837084,4.43274473,139.43,139.42,12.91599124]
[1745104837283,24.96,139.46,139.42,12.91599124]
[1745104837581,4.44171465,139.45,139.42,12.91599124]
[1745104837883,4.44171465,139.44,139.42,12.91599124]
[1745104838080,4.44171465,139.43,139.42,12.91599124]
[1745104850085,4.44711583,139.43,139.42,12.91599124]
[1745104854096,4.44711583,139.43,139.42,7.1737]
[1745104854890,11.62091583,139.43,139.41,5.74229124]
[1745104855090,11.62091583,139.43,139.4,7.1747]
[1745104855091,4.44711583,139.42,139.4,12.91699124]
[1745104855292,4.44711583,139.41,139.39,5.74229124]
[1745104855493,4.44711583,139.4,139.39,5.74229124]
[1745104855892,4.44711583,139.4,139.37,5.74229124]
[1745104856088,4.44711583,139.39,139.37,12.91839124]
[1745104856290,4.44711583,139.38,139.36,5.74229124]
[1745104856589,4.44464487,139.37,139.28,81.88534253]
[1745104856791,4.44500053,139.36,139.32,5.74229124]
[1745104856992,7.1778,139.35,139.32,5.74229124]
[1745104857191,30.68229124,139.37,139.32,5.74229124]
[1745104857392,4.44617452,139.36,139.32,5.74229124]
[1745104857592,4.44605624,139.35,139.32,5.74229124]
[1745104857792,4.44605624,139.34,139.32,5.74229124]
[1745104858096,30.68229124,139.37,139.32,5.74229124]
[1745104858291,4.44645827,139.36,139.32,5.74229124]
[1745104858497,4.44645853,139.35,139.32,5.74229124]
[1745104858698,4.44645853,139.34,139.32,5.74229124]
[1745104858999,4.44645853,139.33,139.32,5.74229124]
[1745104859998,4.84668405,139.33,139.32,5.74229124]
[1745104861699,24.96,139.37,139.32,5.74229124]
[1745104861905,24.96,139.37,139.35,5.74229124]
[1745104862304,32.1367,139.37,139.35,5.74229124]
[1745104866605,32.1367,139.37,139.33,5.74229124]
[1745104868109,24.96,139.37,139.33,5.74229124]
[1745104869113,32.1364,139.37,139.33,5.74229124]
[1745104870108,24.96,139.37,139.33,5.74229124]
[1745104871210,32.1366,139.37,139.33,5.74229124]
[1745104872705,7.177,139.36,139.33,5.74229124]
[1745104873109,24.96,139.37,139.33,5.74229124]
[1745104873408,7.1769,139.36,139.33,5.74229124]
[1745104878416,32.1366,139.37,139.33,5.74229124]
[1745104881615,24.96,139.37,139.33,5.74229124]
[1745104888420,4.71462558,139.36,139.33,5.74229124]
[1745104888622,24.96,139.37,139.33,5.74229124]
[1745104889422,4.71577032,139.36,139.33,5.74229124]
[1745104889614,24.96,139.37,139.33,5.74229124]
[1745104889917,4.71577702,139.36,139.33,5.74229124]
[1745104890220,4.71600691,139.35,139.32,5.74229124]
[1745104890422,24.96,139.37,139.32,5.74229124]
[1745104890623,7.1777,139.35,139.32,5.74229124]
[1745104890825,4.71756929,139.34,139.32,5.74229124]
[1745104891022,7.1779,139.35,139.3,5.74229124]
[1745104891224,4.71828203,139.34,139.3,5.74229124]
[1745104891419,4.71956149,139.33,139.3,5.74229124]
[1745104891725,5.74229124,139.36,139.3,5.74229124]
[1745104891918,4.71956145,139.35,139.3,5.74229124]
[1745104892118,11.89756145,139.34,139.3,5.74229124]
[1745104892320,4.71956145,139.33,139.3,5.74229124]
[1745104892617,7.178,139.34,139.3,5.74229124]
[1745104892825,4.72106542,139.33,139.3,5.74229124]
[1745104893132,7.1777,139.35,139.3,5.74229124]
[1745104893323,4.72102262,139.34,139.3,5.74229124]
[1745104893524,4.72102262,139.33,139.3,5.74229124]
[1745104893822,7.1777,139.35,139.3,5.74229124]
[1745104894023,4.72284024,139.34,139.3,5.74229124]
[1745104894323,4.72284024,139.33,139.3,5.74229124]
[1745104894525,7.1777,139.35,139.3,5.74229124]
[1745104894725,4.72423048,139.34,139.3,5.74229124]
[1745104894924,4.72423048,139.33,139.3,5.74229124]
[1745104895126,7.1777,139.35,139.3,5.74229124]
[1745104895326,4.72429162,139.34,139.3,5.74229124]
[1745104895518,4.72429162,139.33,139.3,5.74229124]
[1745104895722,7.1777,139.35,139.3,5.74229124]
[1745104896031,4.72589613,139.34,139.3,5.74229124]
[1745104896325,4.72589613,139.33,139.3,5.74229124]
[1745104896527,4.72798815,139.32,139.3,5.74229124]
[1745104896728,7.1777,139.35,139.3,5.74229124]
[1745104896929,4.72798815,139.34,139.3,5.74229124]
[1745104897120,4.72798815,139.33,139.3,5.74229124]
[1745104897321,4.72798815,139.32,139.3,5.74229124]
[1745104897527,7.1777,139.35,139.3,5.74229124]
[1745104897728,4.72999067,139.34,139.3,5.74229124]
[1745104897929,4.72999067,139.33,139.3,5.74229124]
[1745104898131,4.72999067,139.32,139.3,5.74229124]
[1745104898433,7.1777,139.35,139.3,5.74229124]
[1745104898623,4.73265157,139.34,139.3,5.74229124]
[1745104898827,4.73265157,139.33,139.3,5.74229124]
[1745104899129,4.73265157,139.32,139.3,5.74229124]
[1745104899329,7.178,139.34,139.3,5.74229124]
[1745104899629,4.7325181,139.33,139.3,5.74229124]
[1745104899831,4.7325181,139.32,139.3,5.74229124]
[1745104900030,4.7325181,139.31,139.3,5.74229124]
[1745104905030,4.73829295,139.31,139.3,5.74229124]
[1745104908640,4.73704929,139.31,139.3,5.74229124]
[1745104911142,4.73665731,139.31,139.3,5.74229124]
[1745104912346,4.73662343,139.31,139.3,5.74229124]
[1745104912747,4.73662343,139.31,139.26,5.74229124]
[1745104912947,4.73662343,139.3,139.26,5.74229124]
[1745104913247,4.73662343,139.29,139.26,5.74229124]
[1745104913447,4.73662343,139.28,139.26,5.74229124]
[1745104913640,4.73648528,139.27,139.26,5.74229124]
[1745104915449,4.73381655,139.27,139.26,5.74229124]
[1745104917248,7.1801,139.3,139.26,5.74229124]
[1745104920151,5.74229124,139.3,139.24,5.74229124]
[1745104920451,11.38459124,139.3,139.24,5.74229124]
[1745104920950,7.1813,139.28,139.24,5.74229124]
[1745104921851,11.38459124,139.3,139.24,5.74229124]
[1745104922353,7.1817,139.27,139.24,5.74229124]
[1745104931660,32.1413,139.28,139.24,5.74229124]
[1745104933160,7.1817,139.27,139.24,5.74229124]
[1745104939569,32.1413,139.28,139.24,5.74229124]
[1745104941172,7.1816,139.27,139.24,5.74229124]
[1745104941469,7.1816,139.27,139.22,30.70229124]
[1745104943167,7.1821,139.26,139.22,30.70229124]
[1745104943371,5.74229124,139.26,139.19,385.98]
[1745104943566,5.74229124,139.26,139.2,5.74229124]
[1745104943772,7.1835,139.24,139.2,5.74229124]
[1745104944067,24.98,139.25,139.2,5.74229124]
[1745104944271,7.1836,139.24,139.2,5.74229124]
[1745104945072,7.184,139.23,139.16,593.4]
[1745104945275,5.74229124,139.22,139.17,5.74229124]
[1745104945474,30.72229124,139.22,139.15,5.74229124]
[1745104945665,5.74229124,139.2,139.15,5.74229124]
[1745104945871,24.98,139.19,139.15,5.74229124]
[1745104946174,7.1862,139.18,139.13,30.72229124]
[1745104946672,7.1863,139.18,139.13,30.72229124]
[1745104947269,32.1659,139.19,139.13,30.72229124]
[1745104947675,24.98,139.19,139.13,30.72229124]
[1745104947976,5.74229124,139.18,139.13,5.74229124]
[1745104948573,7.1871,139.17,139.12,5.74229124]
[1745104948774,5.74229124,139.18,139.12,5.74229124]
[1745104950276,12.92869124,139.18,139.12,5.74229124]
[1745104953676,7.1867,139.17,139.12,5.74229124]
[1745104954182,12.92869124,139.18,139.12,5.74229124]
[1745104955183,7.1867,139.17,139.12,5.74229124]
[1745104955984,12.92869124,139.18,139.12,5.74229124]
[1745104958179,5.74229124,139.18,139.12,5.74229124]
[1745104958386,24.98,139.19,139.14,5.74229124]
[1745104958688,24.98,139.19,139.1,24.98]
[1745104958876,24.98,139.19,139.13,5.74229124]
[1745104959382,32.1659,139.19,139.13,5.74229124]
[1745104961281,5.74229124,139.18,139.1,24.98]
[1745104961486,5.74229124,139.18,139.12,5.74229124]
[1745104961885,7.187,139.17,139.12,5.74229124]
[1745104963690,12.92869124,139.18,139.12,5.74229124]
[1745104964189,7.1867,139.17,139.12,5.74229124]
[1745104964892,12.92879124,139.18,139.12,5.74229124]
[1745104966194,7.1867,139.17,139.1,24.98]
[1745104966496,7.1867,139.17,139.12,5.74229124]
[1745104967691,7.1867,139.17,139.1,24.98]
[1745104967994,37.90979124,139.16,139.1,30.72229124]
[1745104968194,30.72229124,139.16,139.1,30.72229124]
[1745104968393,7.1882,139.15,139.1,5.74229124]
[1745104968594,30.72229124,139.16,139.1,5.74229124]
[1745104969404,5.74229124,139.14,139.08,5.74229124]
[1745104969893,32.1688,139.13,139.08,5.74229124]
[1745104970194,32.1688,139.13,139.07,30.89]
[1745104970689,24.98,139.13,139.08,5.74229124]
[1745104970896,24.98,139.13,139.07,30.89]
[1745104971194,24.98,139.13,139.08,5.74229124]
[1745104974598,32.1689,139.13,139.08,5.74229124]
[1745104975301,37.91119124,139.13,139.08,5.74229124]
[1745104975798,37.91119124,139.13,139.06,361.0]
[1745104975999,37.91119124,139.13,139.06,366.74229124]
[1745104976199,5.74229124,139.11,139.06,5.74229124]
[1745104976693,7.1903,139.1,139.04,31.02229124]
[1745104976900,5.74229124,139.11,139.04,31.02229124]
[1745104977200,25.28,139.1,139.04,31.02229124]
[1745104990711,25.28,139.1,139.04,25.28]
[1745104990913,32.4704,139.1,139.05,5.74229124]
[1745104991212,25.28,139.1,139.05,5.74229124]
[1745104992416,32.4706,139.1,139.05,5.74229124]
[1745104995014,25.28,139.1,139.05,5.74229124]
[1745104995315,25.28,139.13,139.07,5.74229124]
[1745104995515,25.28,139.13,139.09,5.74229124]
[1745104996017,5.74229124,139.15,139.09,5.74229124]
[1745104996518,601.6075,139.16,139.09,5.74229124]
[1745104996717,5.74229124,139.15,139.09,5.74229124]
[1745105004018,5.74229124,139.15,139.11,5.74229124]
[1745105004220,31.02229124,139.16,139.11,5.74229124]
[1745105004826,25.28,139.16,139.11,5.74229124]
[1745105019639,32.4674,139.16,139.11,5.74229124]
[1745105019937,5.74229124,139.15,139.1,25.54]
[1745105020538,12.93029124,139.15,139.1,25.54]
[1745105021037,5.74229124,139.15,139.09,5.74229124]
[1745105022942,12.93009124,139.15,139.09,5.74229124]
[1745105024139,7.1886,139.14,139.09,5.74229124]
[1745105024339,5.74229124,139.15,139.09,5.74229124]
[1745105024938,12.93029124,139.15,139.09,5.74229124]
[1745105037448,5.74229124,139.15,139.09,5.74229124]
[1745105070469,30.96229124,139.15,139.09,5.74229124]
[1745105071970,25.22,139.15,139.09,5.74229124]
[1745105074471,41.95009124,139.16,139.09,5.74229124]
[1745105075877,7.1879,139.15,139.09,5.74229124]
[1745105077179,41.95029124,139.16,139.09,5.74229124]
[1745105077981,34.76279124,139.16,139.09,5.74229124]
[1745105078172,5.74229124,139.14,139.08,25.4]
[1745105078373,32.4091,139.13,139.07,5.74229124]
[1745105078578,5.74229124,139.12,139.07,5.74229124]
[1745105079182,5.74229124,139.12,139.05,30.96229124]
[1745105080283,7.19,139.11,139.05,30.96229124]
[1745105081286,12.93179124,139.12,139.05,30.96229124]
[1745105082382,5.74229124,139.12,139.07,5.74229124]
[1745105096089,25.22,139.13,139.07,5.74229124]
[1745105096286,25.22,139.13,139.09,5.74229124]
[1745105099295,41.85029124,139.16,139.09,5.74229124]
[1745105100394,28.9205,139.16,139.11,5.74229124]
[1745105105901,27.0169,139.16,139.11,5.74229124]
[1745105106102,25.12,139.16,139.11,5.74229124]
[1745105106803,25.12,139.16,139.11,30.86229124]
[1745105106999,40.00829124,139.19,139.13,5.74229124]
[1745105107899,32.82239124,139.19,139.13,5.74229124]
[1745105119314,25.12,139.19,139.15,5.74229124]
[1745105119507,2.0216,139.2,139.15,5.74229124]
[1745105120110,569.14,139.21,139.15,5.74229124]
[1745105120310,30.86229124,139.22,139.15,5.74229124]
[1745105120814,38.04659124,139.22,139.15,5.74229124]
[1745105123213,30.86229124,139.22,139.15,5.74229124]
[1745105125010,25.12,139.22,139.17,5.74229124]
[1745105125715,25.12,139.22,139.19,5.74229124]
[1745105126014,5.74229124,139.24,139.19,5.74229124]
[1745105126316,25.1,139.25,139.19,5.74229124]
[1745105126616,25.1,139.25,139.21,5.74229124]
[1745105148531,1.8617,139.26,139.21,5.74229124]
[1745105150738,1.8617,139.26,139.23,5.74229124]
[1745105161342,1.8617,139.26,139.22,5.74229124]
[1745105161545,1.8617,139.26,139.21,5.74229124]
[1745105162344,9.0438,139.26,139.21,5.74229124]
[1745105167051,1.8617,139.26,139.21,5.74229124]
[1745105170653,9.0438,139.26,139.21,5.74229124]
[1745105171553,7.1821,139.26,139.21,5.74229124]
[1745105171751,7.1818,139.27,139.21,5.74229124]
[1745105174261,7.1821,139.26,139.21,5.74229124]
[1745105174454,30.90229124,139.28,139.21,5.74229124]
[1745105174757,7.1829,139.25,139.21,5.74229124]
[1745105179262,7.1835,139.24,139.2,25.26]
[1745105179461,7.1835,139.24,139.19,5.74229124]
[1745105180063,5.74229124,139.24,139.19,5.74229124]
[1745105183367,7.1841,139.22,139.19,5.74229124]
[1745105192477,7.1839,139.23,139.19,5.74229124]
[1745105198683,12.92569124,139.24,139.19,5.74229124]
[1745105199381,7.1838,139.23,139.19,5.74229124]
[1745105200186,7.1842,139.22,139.19,5.74229124]
[1745105201183,7.1839,139.23,139.19,5.74229124]
[1745105201984,7.1841,139.22,139.17,30.90229124]
[1745105204482,7.1848,139.21,139.17,30.90229124]
[1745105204782,30.78229124,139.22,139.16,5.74229124]
[1745105205687,7.1855,139.2,139.16,5.74229124]
[1745105210488,30.78229124,139.22,139.16,5.74229124]
[1745105210691,7.1863,139.18,139.14,25.04]
[1745105212798,7.1863,139.18,139.13,5.74229124]
[1745105218003,12.92859124,139.18,139.13,5.74229124]
[1745105220701,5.74229124,139.18,139.13,5.74229124]
[1745105221002,25.04,139.19,139.15,5.74229124]
[1745105222006,25.04,139.19,139.12,5.9284]
[1745105222305,25.04,139.19,139.13,5.74229124]
[1745105222808,7.1868,139.17,139.12,5.9284]
[1745105223001,7.1868,139.17,139.12,11.67069124]
[1745105223203,5.74229124,139.18,139.12,7.73789124]
[1745105223402,5.74229124,139.18,139.12,5.74229124]
[1745105223603,25.04,139.19,139.11,30.78229124]
[1745105223604,5.74229124,139.16,139.11,30.78229124]
[1745105223903,30.76229124,139.16,139.11,30.78229124]
[1745105224104,7.1878,139.15,139.11,30.78229124]
[1745105224704,7.1878,139.15,139.11,25.04]
[1745105231816,7.1878,139.15,139.1,5.74229124]
[1745105232310,7.1884,139.14,139.1,5.74229124]
[1745105232511,30.76229124,139.16,139.1,5.74229124]
[1745105233714,7.1879,139.15,139.1,5.74229124]
[1745105235219,37.94969124,139.16,139.1,5.74229124]
[1745105236214,7.1877,139.15,139.1,5.74229124]
[1745105237317,7.1884,139.14,139.1,5.74229124]
[1745105237516,30.76229124,139.16,139.1,5.74229124]
[1745105237913,7.1891,139.13,139.08,30.76229124]
[1745105238216,25.02,139.13,139.08,30.76229124]
[1745105238417,7.1896,139.12,139.08,30.76229124]
[1745105239722,32.209,139.13,139.08,30.76229124]
[1745105241521,25.02,139.13,139.08,30.76229124]
[1745105242223,7.1894,139.12,139.08,30.76229124]
[1745105242523,25.02,139.13,139.08,30.76229124]
[1745105243021,32.2092,139.13,139.08,30.76229124]
[1745105253327,7.1893,139.12,139.08,30.76229124]
[1745105256640,7.1898,139.11,139.08,5.74229124]
[1745105257143,7.1904,139.1,139.06,5.74229124]
[1745105260745,7.1904,139.1,139.04,1.8924]
[1745105260945,7.1904,139.1,139.05,5.74229124]
[1745105261649,7.1913,139.09,139.05,5.74229124]
[1745105261949,32.2113,139.09,139.05,5.74229124]
[1745105263351,25.02,139.12,139.05,5.74229124]
[1745105263552,30.76229124,139.12,139.09,7.1907]
[1745105264050,37.95199124,139.12,139.09,7.1907]
[1745105264253,30.76229124,139.12,139.09,7.1907]
[1745105265253,37.95199124,139.12,139.09,7.1907]
[1745105267254,7.1898,139.11,139.09,7.1907]
[1745105267654,30.76229124,139.12,139.09,7.1907]
[1745105267850,37.95189124,139.12,139.1,7.1902]
[1745105269357,37.95189124,139.12,139.09,7.1906]
[1745105270258,37.95189124,139.12,139.1,7.1903]
[1745105276462,37.95189124,139.12,139.09,7.1906]
[1745105276662,30.76229124,139.12,139.05,30.76229124]
[1745105280463,37.95159124,139.12,139.05,30.76229124]
[1745105283760,7.1899,139.11,139.05,30.76229124]
[1745105285867,37.95189124,139.12,139.05,30.76229124]
[1745105286465,30.76229124,139.12,139.07,5.74229124]
[1745105287470,25.02,139.12,139.07,5.74229124]
[1745105290073,30.76229124,139.12,139.05,25.02]
[1745105290372,25.02,139.12,139.06,5.74229124]
[1745105291272,32.2096,139.12,139.06,5.74229124]
[1745105300981,25.02,139.12,139.06,5.74229124]
[1745105301381,30.76229124,139.12,139.05,25.02]
[1745105301581,7.1899,139.11,139.05,25.02]
[1745105304683,37.95189124,139.12,139.05,25.02]
[1745105307587,37.95189124,139.12,139.06,5.74229124]
[1745105312889,25.02,139.12,139.08,5.74229124]
[1745105316391,7.73719124,139.14,139.08,5.74229124]
[1745105317080,14.92549124,139.14,139.08,5.74229124]
[1745105317890,7.73719124,139.14,139.08,5.74229124]
[1745105318086,9.75929124,139.14,139.08,5.74229124]
[1745105319293,7.1894,139.12,139.08,5.74229124]
[1745105321891,32.209,139.13,139.08,5.74229124]
[1745105323893,7.1896,139.12,139.07,5.74229124]
[1745105324095,5.74229124,139.12,139.07,5.74229124]
[1745105324295,7.77369124,139.12,139.06,5.74229124]
[1745105324497,7.1898,139.11,139.06,5.74229124]
[1745105324696,7.77369124,139.12,139.06,5.74229124]
[1745105325096,14.96339124,139.12,139.06,5.74229124]
[1745105331803,7.1898,139.11,139.06,5.74229124]
[1745105335208,7.77369124,139.12,139.06,5.74229124]
[1745105335607,14.96319124,139.12,139.06,5.74229124]
[1745105336103,7.1899,139.11,139.06,5.74229124]
[1745105337111,14.96329124,139.12,139.06,5.74229124]
[1745105345514,25.02,139.11,139.06,5.74229124]
[1745105348816,32.2098,139.11,139.06,5.74229124]
[1745105349015,25.02,139.11,139.06,5.74229124]
[1745105349916,32.2099,139.11,139.06,5.74229124]
[1745105350117,25.02,139.11,139.06,5.74229124]
[1745105351117,32.21,139.11,139.06,5.74229124]
[1745105354718,25.02,139.11,139.06,5.74229124]
[1745105365627,29.037,139.14,139.08,5.74229124]
[1745105366827,25.02,139.14,139.08,5.74229124]
[1745105367429,25.02,139.14,139.13,7.1888]
[1745105368329,5.74229124,139.16,139.13,7.1888]
[1745105368628,30.76229124,139.16,139.13,7.1888]
[1745105369530,30.76229124,139.16,139.14,7.1881]
[1745105370830,30.76229124,139.16,139.15,7.1877]
[1745105377339,30.76229124,139.16,139.14,7.1882]
[1745105378440,37.94949124,139.16,139.13,7.1885]
[1745105378641,5.74229124,139.14,139.08,5.74229124]
[1745105378940,25.02,139.13,139.08,5.74229124]
[1745105379241,25.02,139.13,139.12,7.1893]
[1745105387443,25.02,139.13,139.11,7.1895]
[1745105393345,32.2091,139.13,139.08,5.74229124]
[1745105393646,32.2091,139.13,139.07,25.02]
[1745105393848,32.2091,139.13,139.1,7.1903]
[1745105394944,25.02,139.13,139.11,7.1898]
[1745105397843,32.2089,139.13,139.1,7.1901]
[1745105400952,32.2089,139.13,139.11,7.1898]
[1745105401153,25.02,139.13,139.11,7.1898]
[1745105412674,25.02,139.13,139.12,7.1893]
[1745105413470,7.188,139.15,139.13,7.1887]
[1745105413672,7.188,139.15,139.1,5.74229124]
[1745105414676,7.1883,139.14,139.1,5.74229124]
[1745105414876,30.76229124,139.16,139.1,5.74229124]
[1745105415178,7.188,139.15,139.12,7.189]
[1745105416081,7.188,139.15,139.13,7.1885]
[1745105416273,7.188,139.15,139.1,5.74229124]
[1745105416978,30.76229124,139.16,139.1,5.74229124]
[1745105417380,37.94969124,139.16,139.14,7.1882]
[1745105418881,32.2074,139.16,139.14,7.1882]
[1745105419281,32.2074,139.16,139.13,7.1885]
[1745105419482,32.2074,139.16,139.1,30.76229124]
[1745105420284,32.2074,139.16,139.14,7.1882]
[1745105420484,25.02,139.16,139.14,7.1882]
[1745105421485,32.2073,139.16,139.14,7.1882]
[1745105421785,32.2073,139.16,139.13,7.1885]
[1745105423886,32.2073,139.16,139.14,7.1882]
[1745105424586,25.02,139.16,139.14,7.1882]
[1745105425988,25.02,139.16,139.15,7.1877]
[1745105427184,41.69469124,139.19,139.16,7.1867]
[1745105427389,41.69469124,139.19,139.12,5.74229124]
[1745105427890,34.50879124,139.19,139.12,5.74229124]
[1745105428082,34.50879124,139.19,139.14,5.74229124]
[1745105428585,34.50879124,139.19,139.17,7.1865]
[1745105428790,28.7665,139.19,139.17,7.1865]
[1745105431889,25.02,139.19,139.17,7.1865]
[1745105432395,25.02,139.19,139.14,5.74229124]
[1745105434297,25.02,139.19,139.18,7.1862]
[1745105437699,25.02,139.19,139.17,7.1864]
[1745105437900,5.74229124,139.18,139.12,5.74229124]
[1745105438299,5.74229124,139.16,139.13,7.1885]
[1745105438499,30.74229124,139.16,139.13,7.1885]
[1745105438791,30.74229124,139.16,139.1,391.74229124]
[1745105438999,37.92979124,139.16,139.13,7.1885]
[1745105439599,30.74229124,139.16,139.14,7.1882]
[1745105439799,25.0,139.16,139.14,7.1882]
[1745105440101,25.0,139.16,139.15,7.1877]
[1745105440298,12.92859124,139.18,139.12,5.74229124]
[1745105441301,12.92859124,139.18,139.16,7.1871]
[1745105441805,5.74229124,139.18,139.16,7.1871]
[1745105443198,25.0,139.19,139.17,7.1864]
[1745105443702,25.0,139.19,139.18,7.1862]
[1745105444201,25.0,139.19,139.14,5.74229124]
[1745105444396,25.0,139.19,139.17,7.1865]
[1745105445902,32.1859,139.19,139.17,7.1865]
[1745105446303,32.1859,139.19,139.16,7.187]
[1745105450605,7.1863,139.18,139.16,7.187]
[1745105450905,25.0,139.19,139.16,7.187]
[1745105451204,32.1859,139.19,139.16,7.187]
[1745105451601,32.1859,139.19,139.17,7.1866]
[1745105452612,32.1859,139.19,139.16,7.1869]
[1745105453902,32.1859,139.19,139.17,7.1867]
[1745105458421,25.0,139.19,139.18,7.1862]
[1745105458611,25.0,139.19,139.14,5.74229124]
[1745105460209,25.0,139.19,139.17,7.1862]
[1745105460412,7.1862,139.18,139.14,5.74229124]
[1745105461217,7.1862,139.18,139.16,7.187]
[1745105462618,32.1859,139.19,139.16,7.187]
[1745105464918,7.1862,139.18,139.16,7.187]
[1745105467322,7.1862,139.18,139.15,7.1874]
[1745105467720,7.1862,139.18,139.14,5.74229124]
[1745105467921,7.1862,139.18,139.15,7.1876]
[1745105468619,7.1862,139.18,139.16,7.1872]
[1745105469417,25.0,139.19,139.17,7.1864]
[1745105471925,32.1857,139.19,139.17,7.1864]
[1745105472730,7.1862,139.18,139.15,7.1873]
[1745105474530,7.1862,139.18,139.16,7.1871]
[1745105474730,32.1859,139.19,139.16,7.1871]
[1745105477235,7.1862,139.18,139.16,7.1871]
[1745105479632,7.1862,139.18,139.15,7.1875]
[1745105481635,7.1862,139.18,139.16,7.1871]
[1745105485340,7.1862,139.18,139.15,7.1876]
[1745105486739,25.0,139.19,139.16,7.1869]
[1745105487639,32.186,139.19,139.16,7.1869]
[1745105490042,7.1862,139.18,139.16,7.1869]
[1745105491544,30.74229124,139.19,139.13,25.0]
[1745105491841,5.74229124,139.17,139.12,5.74229124]
[1745105492350,7.1878,139.15,139.12,7.1892]
[1745105493143,7.1878,139.15,139.13,7.1887]
[1745105495345,25.0,139.16,139.1,5.74229124]
[1745105495647,5.74229124,139.15,139.1,5.74229124]
[1745105495848,7.189,139.13,139.11,7.1894]
[1745105496147,7.189,139.13,139.1,5.74229124]
[1745105496450,7.189,139.13,139.1,12.93219124]
[1745105497250,7.1893,139.12,139.1,12.93219124]
[1745105497454,5.74229124,139.15,139.09,7.1906]
[1745105497751,5.74229124,139.13,139.08,5.74229124]
[1745105497952,25.0,139.12,139.08,5.74229124]
[1745105499958,7.1907,139.1,139.08,5.74229124]
[1745105500759,7.1907,139.1,139.07,7.1915]
[1745105502362,7.1907,139.1,139.08,7.1912]
[1745105505657,7.1901,139.11,139.08,7.1912]
[1745105512463,25.0,139.12,139.08,5.74229124]
[1745105512763,25.0,139.12,139.1,5.74229124]
[1745105513264,25.0,139.12,139.11,7.1898]
[1745105514364,37.95009124,139.15,139.12,7.1889]
[1745105514761,37.95009124,139.15,139.1,5.74229124]
[1745105514963,25.02,139.15,139.1,5.74229124]
[1745105515464,25.02,139.15,139.13,7.1885]
[1745105516365,25.02,139.15,139.14,7.1883]
[1745105517761,5.74229124,139.17,139.12,5.74229124]
[1745105517965,25.02,139.18,139.14,5.74229124]
[1745105518365,25.02,139.18,139.17,7.1867]
[1745105525268,30.74229124,139.21,139.19,7.1855]
[1745105525767,37.92699124,139.21,139.19,7.1855]
[1745105528672,30.74229124,139.21,139.19,7.1855]
[1745105531270,37.92699124,139.21,139.19,7.1855]
[1745105531674,37.92699124,139.21,139.18,7.1859]
[1745105532381,30.74229124,139.21,139.19,7.1856]
[1745105532672,25.0,139.21,139.18,5.74229124]
[1745105532874,25.0,139.24,139.22,7.184]
[1745105533073,5.74229124,139.23,139.22,7.184]
[1745105533271,30.74229124,139.24,139.22,7.184]
[1745105534271,37.92549124,139.24,139.22,7.184]
[1745105534473,30.74229124,139.24,139.22,7.184]
[1745105537877,25.0,139.24,139.23,7.1836]
[1745105538879,5.74229124,139.26,139.24,7.1828]
[1745105539980,25.0,139.27,139.25,7.1826]
[1745105540380,32.1815,139.27,139.25,7.1826]
[1745105541281,32.1815,139.27,139.24,7.1829]
[1745105542981,5.74229124,139.26,139.2,1.8413]
[1745105543180,5.74229124,139.26,139.2,7.58359124]
[1745105543781,7.1828,139.25,139.22,7.1838]